bitfinex-derivatives/quotes_SOLF0:USTF0_20260107
["timestamp","ask_amount","ask_price","bid_price","bid_amount"]
[1767778736164,5.45085544,137.23,137.19,0.04733209]
[1767778736359,5.45085544,137.22,137.19,0.04733209]
[1767778736553,2.23383095,137.25,137.19,0.04733209]
[1767778736754,5.4515814,137.24,137.19,0.04733209]
[1767778736957,5.4515814,137.23,137.19,0.04733209]
[1767778737157,5.4515814,137.22,137.16,0.30431238]
[1767778737354,5.4515814,137.21,137.16,0.30431238]
[1767778737553,2.23383095,137.25,137.16,0.30431238]
[1767778737750,5.45240858,137.24,137.16,0.30431238]
[1767778738061,5.45240858,137.23,137.16,0.30431238]
[1767778738257,5.45240858,137.22,137.16,0.30431238]
[1767778738459,5.45240858,137.21,137.16,0.30431238]
[1767778738663,6.5629,137.24,137.16,0.30431238]
[1767778738862,5.4520643,137.23,137.16,0.30431238]
[1767778739065,5.4520643,137.22,137.16,0.30431238]
[1767778739359,5.4520643,137.21,137.16,0.30431238]
[1767778739561,6.5629,137.24,137.16,0.30431238]
[1767778739765,5.45159208,137.23,137.16,0.30431238]
[1767778740059,5.45159208,137.22,137.16,0.30431238]
[1767778740260,5.45159208,137.21,137.16,0.30431238]
[1767778740451,6.5629,137.24,137.16,0.30431238]
[1767778740658,5.4513921,137.23,137.16,0.30431238]
[1767778740853,5.4513921,137.22,137.16,0.30431238]
[1767778741052,2.23383095,137.29,137.16,0.30431238]
[1767778741255,5.4522722,137.28,137.16,0.30431238]
[1767778741468,5.4522722,137.27,137.16,0.30431238]
[1767778741656,5.45315563,137.26,137.16,0.30431238]
[1767778741855,5.45315563,137.25,137.16,0.30431238]
[1767778742056,5.45315563,137.24,137.16,0.30431238]
[1767778742258,2.23383095,137.29,137.19,0.04749709]
[1767778742565,12.01679708,137.28,137.19,0.04749709]
[1767778742864,5.45579708,137.27,137.18,0.31400677]
[1767778743069,5.45579708,137.26,137.18,0.31400677]
[1767778743267,5.45579708,137.25,137.21,0.05570545]
[1767778743456,5.45579708,137.24,137.21,0.05570545]
[1767778743756,6.561,137.28,137.21,0.05570545]
[1767778743956,5.4539536,137.27,137.21,0.05570545]
[1767778744260,5.4539536,137.26,137.21,0.05570545]
[1767778744457,5.4539536,137.25,137.21,0.05570545]
[1767778744665,5.4539536,137.24,137.21,0.05570545]
[1767778744963,2.23383095,137.26,137.21,0.05570545]
[1767778745163,5.45385216,137.25,137.18,0.31400677]
[1767778745359,5.45385216,137.24,137.18,0.31400677]
[1767778745669,2.23383095,137.26,137.18,0.31400677]
[1767778745858,0.04813508,137.23,137.18,0.31400677]
[1767778749368,6.5615,137.27,137.19,0.36733979]
[1767778749574,5.45040313,137.26,137.19,0.36733979]
[1767778749765,5.45040313,137.25,137.19,0.36733979]
[1767778749966,6.5615,137.27,137.19,0.36733979]
[1767778750169,5.45030151,137.26,137.19,0.36733979]
[1767778750366,5.45030151,137.25,137.19,0.36733979]
[1767778750571,6.5615,137.27,137.19,0.36733979]
[1767778750773,5.45001448,137.26,137.19,0.36733979]
[1767778751071,5.45001448,137.25,137.19,0.36733979]
[1767778751258,6.5615,137.27,137.19,0.36733979]
[1767778751461,5.44972883,137.26,137.19,0.36733979]
[1767778751670,5.44972883,137.25,137.19,0.36733979]
[1767778751970,6.5615,137.27,137.19,0.36733979]
[1767778752175,5.44959815,137.26,137.19,0.36733979]
[1767778752474,5.44959815,137.25,137.19,0.36733979]
[1767778752672,6.5615,137.27,137.19,0.36733979]
[1767778752972,5.44935639,137.26,137.19,0.36733979]
[1767778753172,5.44935639,137.25,137.19,0.36733979]
[1767778753480,6.5615,137.27,137.19,0.36733979]
[1767778753777,5.44926637,137.26,137.19,0.36733979]
[1767778753969,5.44926637,137.25,137.19,0.36733979]
[1767778754173,5.44942793,137.24,137.19,0.36733979]
[1767778754372,6.5615,137.27,137.19,0.36733979]
[1767778754559,5.44950741,137.26,137.19,0.36733979]
[1767778754765,5.44950741,137.25,137.19,0.36733979]
[1767778754974,5.44950741,137.24,137.19,0.36733979]
[1767778755170,6.5615,137.27,137.19,0.36733979]
[1767778755470,5.4493427,137.26,137.19,0.36733979]
[1767778755671,5.4493427,137.25,137.19,0.36733979]
[1767778755870,8.79533095,137.27,137.19,0.36733979]
[1767778756173,5.44951988,137.26,137.19,0.36733979]
[1767778756373,5.44951988,137.25,137.19,0.36733979]
[1767778756673,8.79533095,137.27,137.19,0.36733979]
[1767778756873,5.44989391,137.26,137.19,0.36733979]
[1767778757173,5.44989391,137.25,137.19,0.36733979]
[1767778757375,2.23383095,137.27,137.19,0.36733979]
[1767778757669,5.45020555,137.26,137.19,6.93223979]
[1767778757865,5.45020555,137.25,137.2,0.31400677]
[1767778758065,2.23383095,137.3,137.2,0.31400677]
[1767778758267,6.5609,137.28,137.2,0.31400677]
[1767778758464,5.45022319,137.27,137.2,0.31400677]
[1767778758671,6.92827292,137.26,137.2,0.31400677]
[1767778758861,5.45022319,137.25,137.2,0.31400677]
[1767778759060,1.47804973,137.26,137.18,6.87940677]
[1767778759266,5.4506427,137.25,137.18,6.87940677]
[1767778759471,1.42914682,137.26,137.18,6.87940677]
[1767778759672,1.42914682,137.24,137.18,0.31400677]
[1767778759975,0.04792727,137.23,137.18,0.31400677]
[1767778762070,0.04792727,137.23,137.13,0.31400677]
[1767778762071,1.47707409,137.23,137.13,0.31400677]
[1767778762271,1.42914682,137.19,137.13,0.31400677]
[1767778762467,1.42914682,137.2,137.13,0.31400677]
[1767778762870,0.05499065,137.17,137.13,0.31400677]
[1767778763677,1.42914682,137.2,137.13,0.31400677]
[1767778763875,1.42914682,137.2,137.14,0.05555089]
[1767778764664,1.42914682,137.2,137.15,0.31400677]
[1767778764884,1.42914682,137.22,137.15,0.31400677]
[1767778765184,5.45403682,137.21,137.15,0.31400677]
[1767778765482,1.42914682,137.22,137.15,0.31400677]
[1767778765675,5.4533467,137.21,137.17,0.05208397]
[1767778765877,1.42914682,137.22,137.17,0.05208397]
[1767778766076,5.45566431,137.21,137.17,0.05208397]
[1767778766388,1.42914682,137.22,137.17,0.05208397]
[1767778766566,5.45505321,137.21,137.17,0.05208397]
[1767778766771,1.42914682,137.22,137.17,0.05208397]
[1767778766977,5.45503349,137.21,137.17,0.05208397]
[1767778767280,1.42914682,137.22,137.17,0.05208397]
[1767778767573,5.45425426,137.21,137.12,6.88220677]
[1767778767774,6.88340108,137.2,137.12,6.88220677]
[1767778767983,1.42914682,137.2,137.12,6.88220677]
[1767778768575,1.42914682,137.2,137.13,0.31400677]
[1767778768976,0.04847966,137.17,137.13,0.31400677]
[1767778769785,1.42914682,137.21,137.13,0.31400677]
[1767778769986,1.42914682,137.21,137.14,0.04812168]
[1767778773583,6.5639,137.22,137.14,0.36851504]
[1767778773788,6.88037319,137.21,137.14,0.36851504]
[1767778773987,1.42914682,137.21,137.14,0.36851504]
[1767778774187,6.5639,137.22,137.14,0.36851504]
[1767778774488,6.8808237,137.21,137.14,0.36851504]
[1767778774687,1.42914682,137.21,137.14,0.36851504]
[1767778774889,1.42914682,137.24,137.15,0.32039336]
[1767778775092,5.45197751,137.23,137.15,0.32039336]
[1767778775384,1.42914682,137.24,137.15,0.32039336]
[1767778775584,5.45204279,137.23,137.18,0.05147761]
[1767778775789,1.42914682,137.24,137.18,0.05147761]
[1767778775996,5.45204275,137.23,137.18,0.05147761]
[1767778776299,1.42914682,137.24,137.18,0.05147761]
[1767778776487,5.45205469,137.23,137.18,0.05147761]
[1767778776686,1.42914682,137.24,137.18,0.05147761]
[1767778776982,5.45205469,137.23,137.18,0.05147761]
[1767778777281,1.42914682,137.24,137.18,0.05147761]
[1767778777476,5.45205144,137.23,137.18,0.05147761]
[1767778777689,1.42914682,137.24,137.18,0.05147761]
[1767778777891,5.45232492,137.23,137.18,0.05147761]
[1767778778094,1.42914682,137.24,137.18,0.05147761]
[1767778778285,5.45227797,137.23,137.18,0.05147761]
[1767778778486,1.42914682,137.24,137.18,0.05147761]
[1767778778988,6.562,137.26,137.18,0.05147761]
[1767778779296,1.42914682,137.24,137.18,0.05147761]
[1767778779882,1.42914682,137.25,137.18,0.05147761]
[1767778780088,5.4538136,137.24,137.18,0.05147761]
[1767778780295,1.42914682,137.25,137.18,0.05147761]
[1767778780485,5.45381756,137.24,137.18,0.05147761]
[1767778780686,1.42914682,137.25,137.18,0.05147761]
[1767778780886,5.45381756,137.24,137.18,0.05147761]
[1767778781095,1.42914682,137.25,137.18,0.05147761]
[1767778781287,5.45355933,137.24,137.18,0.05147761]
[1767778781488,1.42914682,137.25,137.18,0.05147761]
[1767778781688,5.4538086,137.24,137.18,0.05147761]
[1767778781890,1.42914682,137.25,137.18,0.05147761]
[1767778782090,5.4538086,137.24,137.18,0.05147761]
[1767778782298,1.42914682,137.25,137.18,0.05147761]
[1767778782491,5.45371586,137.24,137.18,0.05147761]
[1767778782692,1.42914682,137.25,137.18,0.05147761]
[1767778782893,5.45269108,137.24,137.18,0.05147761]
[1767778783093,1.42914682,137.25,137.18,0.05147761]
[1767778783294,5.45257404,137.24,137.18,0.05147761]
[1767778783598,1.42914682,137.25,137.18,0.05147761]
[1767778783799,5.4530034,137.24,137.18,0.05147761]
[1767778784101,1.42914682,137.23,137.18,0.05147761]
[1767778789197,1.42914682,137.24,137.18,0.05147761]
[1767778790800,1.42914682,137.24,137.18,0.37187097]
[1767778791002,1.42914682,137.26,137.18,0.37187097]
[1767778791303,5.45390191,137.25,137.18,0.37187097]
[1767778791499,1.42914682,137.26,137.19,0.32039336]
[1767778791804,1.42914682,137.26,137.2,0.04774249]
[1767778792703,1.42914682,137.27,137.2,0.04774249]
[1767778792900,5.4541193,137.26,137.2,0.04774249]
[1767778793104,1.42914682,137.27,137.2,0.32039336]
[1767778793302,5.45413409,137.26,137.2,0.32039336]
[1767778793505,1.42914682,137.27,137.22,0.04628233]
[1767778793809,5.45389601,137.26,137.22,0.04628233]
[1767778794005,1.42914682,137.27,137.22,0.04628233]
[1767778794196,5.45382763,137.26,137.22,0.04628233]
[1767778794496,1.42914682,137.27,137.22,0.04628233]
[1767778794692,5.40032981,137.26,137.22,0.04628233]
[1767778794896,1.42914682,137.27,137.22,0.04628233]
[1767778795105,5.40032981,137.26,137.22,0.04628233]
[1767778795305,1.42914682,137.27,137.22,0.04628233]
[1767778795507,5.40031441,137.26,137.22,0.04628233]
[1767778795707,1.42914682,137.27,137.22,0.04628233]
[1767778796003,5.40037982,137.26,137.22,0.04628233]
[1767778796206,1.42914682,137.27,137.22,0.04628233]
[1767778796404,5.40043259,137.26,137.22,0.04628233]
[1767778796605,1.42914682,137.27,137.22,0.04628233]
[1767778796806,5.4004144,137.26,137.22,0.04628233]
[1767778796996,1.42914682,137.27,137.22,0.04628233]
[1767778797197,5.4004144,137.26,137.22,0.04628233]
[1767778797397,1.42914682,137.27,137.22,0.04628233]
[1767778797597,5.40141154,137.26,137.22,0.04628233]
[1767778797798,6.5605,137.29,137.22,0.04628233]
[1767778798109,6.83104822,137.28,137.22,0.04628233]
[1767778798308,5.4019014,137.27,137.22,0.04628233]
[1767778800095,1.42914682,137.29,137.22,0.04628233]
[1767778800408,5.40070712,137.28,137.22,0.04628233]
[1767778800614,5.40070712,137.27,137.2,0.32039336]
[1767778800799,1.42914682,137.29,137.24,0.05128506]
[1767778801106,5.3999066,137.28,137.24,0.05128506]
[1767778801315,6.82905342,137.27,137.24,0.05128506]
[1767778801510,1.47889795,137.27,137.2,0.32039336]
[1767778802009,0.04975113,137.27,137.2,0.32039336]
[1767778803116,1.42914682,137.23,137.14,0.3145005]
[1767778804097,0.05538892,137.2,137.14,0.3145005]
[1767778804809,1.42914682,137.23,137.16,0.3145005]
[1767778805014,1.42914682,137.23,137.16,0.36422675]
[1767778808015,6.5621,137.26,137.16,0.36422675]
[1767778808214,1.42914682,137.21,137.16,0.36422675]
[1767778808410,6.5621,137.26,137.16,0.3145005]
[1767778808411,1.42914682,137.22,137.16,0.3145005]
[1767778808911,1.42914682,137.22,137.17,0.04973909]
[1767778810716,6.5621,137.26,137.17,0.04973909]
[1767778810916,1.42914682,137.23,137.17,0.04973909]
[1767778811118,1.42914682,137.23,137.16,0.3145005]
[1767778811509,1.42914682,137.23,137.19,0.05136595]
[1767778811914,102.0377,137.31,137.19,0.36586645]
[1767778812220,1.42914682,137.27,137.19,0.36586645]
[1767778812411,5.4001887,137.26,137.19,0.3145005]
[1767778812719,5.4001887,137.26,137.22,0.05044268]
[1767778813328,1.42914682,137.23,137.15,0.3145005]
[1767778814621,0.04720096,137.2,137.15,0.3145005]
[1767778815317,1.42914682,137.23,137.15,0.3145005]
[1767778815524,1.42914682,137.2,137.13,0.3145005]
[1767778816630,1.42914682,137.2,137.11,0.3145005]
[1767778817118,1.42914682,137.2,137.14,0.051792]
[1767778818516,8.79889352,137.22,137.14,0.051792]
[1767778818729,5.40077347,137.21,137.14,0.051792]
[1767778818927,8.79889352,137.22,137.14,0.051792]
[1767778819124,5.40077166,137.21,137.14,0.051792]
[1767778819435,8.79889352,137.22,137.14,0.051792]
[1767778819436,5.39969021,137.2,137.14,0.051792]
[1767778819629,8.79889352,137.22,137.14,0.051792]
[1767778819926,5.40009296,137.21,137.14,0.051792]
[1767778820126,5.40009296,137.2,137.14,0.051792]
[1767778820328,8.79889352,137.22,137.14,0.051792]
[1767778820530,5.39878912,137.21,137.14,0.051792]
[1767778820719,5.39878912,137.2,137.14,0.051792]
[1767778821025,8.79889352,137.22,137.14,0.051792]
[1767778821221,5.39878564,137.21,137.14,0.051792]
[1767778821425,2.23499352,137.16,137.1,1.23163]
[1767778821626,2.23499352,137.19,137.1,1.23163]
[1767778821831,5.39685767,137.18,137.1,1.23163]
[1767778822130,2.23499352,137.19,137.1,1.23163]
[1767778822131,2.23499352,137.15,137.1,1.23163]
[1767778823035,0.05590312,137.14,137.1,1.23163]
[1767778823431,2.23499352,137.2,137.1,1.23163]
[1767778823648,5.3884067,137.19,137.11,0.05429028]
[1767778823841,5.3884067,137.18,137.11,0.05429028]
[1767778824041,2.23499352,137.2,137.1,1.5461305]
[1767778824243,7.62337966,137.19,137.1,1.5461305]
[1767778824442,2.23499352,137.19,137.1,1.5461305]
[1767778824943,2.23499352,137.19,137.13,0.05002839]
[1767778826743,102.0803,137.25,137.13,0.36452889]
[1767778826943,7.62439064,137.24,137.13,0.36452889]
[1767778827143,5.38939712,137.23,137.13,0.3145005]
[1767778827444,5.38939712,137.23,137.11,6.8832005]
[1767778827646,5.38939712,137.23,137.17,0.05178768]
[1767778827848,5.38939712,137.23,137.11,6.8832005]
[1767778828152,0.05587536,137.21,137.12,0.3145005]
[1767778828342,2.29086888,137.21,137.12,0.3145005]
[1767778828544,2.23499352,137.21,137.1,1.5461305]
[1767778828853,2.23499352,137.18,137.1,1.23163]
[1767778829147,2.23499352,137.15,137.1,1.23163]
[1767778830138,0.04889833,137.14,137.1,1.23163]
[1767778830744,0.04889833,137.14,137.05,0.3145005]
[1767778831243,2.23499352,137.15,137.05,0.3145005]
[1767778831449,8.80189352,137.16,137.05,0.3145005]
[1767778831850,2.23499352,137.19,137.08,0.33058161]
[1767778832547,2.23499352,137.19,137.09,0.33058161]
[1767778832740,2.23499352,137.19,137.12,0.04666459]
[1767778835257,2.23499352,137.16,137.06,0.33058161]
[1767778836758,104.36359352,137.19,137.07,0.33058161]
[1767778836759,8.80039352,137.19,137.07,0.33058161]
[1767778837349,6.5658,137.18,137.07,0.33058161]
[1767778839055,6.5658,137.18,137.11,0.04774078]
[1767778839847,2.23499352,137.21,137.11,0.37832239]
[1767778840253,2.23499352,137.21,137.11,0.33058161]
[1767778840552,6.564,137.22,137.11,0.33058161]
[1767778840748,2.23499352,137.17,137.09,0.33058161]
[1767778841862,6.5655,137.19,137.09,0.33058161]
[1767778842056,8.80049352,137.19,137.09,0.33058161]
[1767778842862,0.04690507,137.15,137.09,0.33058161]
[1767778845260,6.5643,137.21,137.1,0.33058161]
[1767778846566,6.5643,137.21,137.14,0.05199844]
[1767778847165,6.5659,137.18,137.07,0.33058161]
[1767778847364,2.23499352,137.16,137.07,0.33058161]
[1767778848264,2.23499352,137.17,137.07,0.33058161]
[1767778848464,0.04653425,137.13,137.07,0.33058161]
[1767778849454,0.04653425,137.13,137.03,0.33058161]
[1767778849859,2.23499352,137.14,137.03,0.33058161]
[1767778850266,0.04798138,137.09,137.03,0.33058161]
[1767778851860,2.23499352,137.14,137.03,0.33058161]
[1767778852068,2.23499352,137.14,137.05,0.04768927]
[1767778852463,2.23499352,137.14,137.03,0.33058161]
[1767778853166,2.23499352,137.14,137.07,0.04798953]
[1767778854973,8.80289352,137.14,137.07,0.04798953]
[1767778855367,2.23499352,137.14,137.07,0.04798953]
[1767778861180,102.1513,137.16,137.07,0.04798953]
[1767778861479,2.23499352,137.13,137.07,0.04798953]
[1767778861681,2.23499352,137.13,137.04,0.30985516]
[1767778862681,2.23499352,137.13,137.07,0.04688503]
[1767778863580,2.23499352,137.1,137.0,0.30150052]
[1767778863874,0.04707478,137.11,137.0,0.30150052]
[1767778864084,2.23499352,137.1,137.0,0.30150052]
[1767778865280,0.0463455,137.06,137.0,0.30150052]
[1767778865477,0.0463455,137.06,136.97,0.30150052]
[1767778865878,2.23499352,137.08,136.97,0.30150052]
[1767778866182,2.23499352,137.08,136.94,102.3106]
[1767778866183,102.2147,137.07,136.94,0.30150052]
[1767778866381,0.04861998,137.03,136.94,0.30150052]
[1767778866886,2.23499352,137.05,136.94,0.30150052]
[1767778867087,2.23499352,137.03,136.94,0.30150052]
[1767778867282,0.04594643,137.0,136.94,0.30150052]
[1767778870088,2.23499352,137.1,136.97,0.30150052]
[1767778871689,2.23499352,137.09,136.97,0.30150052]
[1767778872183,2.23499352,137.09,136.98,0.30150052]
[1767778872380,2.23499352,137.12,137.01,0.30150052]
[1767778872598,6.23314316,137.18,137.02,0.30150052]
[1767778872886,6.5684,137.13,137.02,0.04664285]
[1767778873086,6.5684,137.13,136.99,6.5745]
[1767778873280,6.23314316,137.14,137.01,0.30150052]
[1767778873488,12.80104316,137.14,137.01,0.30150052]
[1767778874285,12.80104316,137.14,137.06,0.04794554]
[1767778874492,6.5685,137.13,137.01,0.30150052]
[1767778875687,108.7384,137.13,137.01,0.30150052]
[1767778875995,108.7384,137.13,137.06,0.04975612]
[1767778876191,0.0464053,137.08,136.94,102.3088]
[1767778876388,6.27954846,137.08,136.97,0.30150052]
[1767778876586,6.23314316,137.08,136.97,0.30150052]
[1767778877591,0.04852925,137.04,136.97,0.30150052]
[1767778877896,0.04852925,137.04,136.95,0.30150052]
[1767778878301,108.45844316,137.06,136.93,0.30150052]
[1767778878592,0.04946074,137.01,136.93,0.30150052]
[1767778878796,0.04946074,137.01,136.83,102.69010052]
[1767778878797,3.84330162,136.95,136.83,102.69010052]
[1767778878998,3.84330162,136.98,136.86,0.30150052]
[1767778879203,108.8366,137.01,136.86,102.66960052]
[1767778879395,108.8366,137.01,136.84,102.3831]
[1767778879396,102.2741,136.99,136.87,0.30150052]
[1767778879698,0.05336124,136.93,136.87,0.30150052]
[1767778880598,86.06,137.03,136.9,0.30150052]
[1767778880798,3.84330162,137.03,136.9,0.30150052]
[1767778881199,6.5735,137.02,136.9,0.30150052]
[1767778881500,108.8252,137.02,136.9,0.30150052]
[1767778882204,108.8252,137.02,136.95,0.05295145]
[1767778882603,6.5735,137.02,136.95,0.05295145]
[1767778885308,0.0486586,137.0,136.95,0.05295145]
[1767778886905,0.0486586,137.0,136.92,0.30150052]
[1767778888903,0.0486586,137.0,136.86,102.3674]
[1767778888904,3.89196022,137.0,136.89,0.30150052]
[1767778889211,3.84330162,136.97,136.84,0.30150052]
[1767778889408,3.84330162,136.93,136.81,102.4076]
[1767778889710,0.0469696,136.92,136.82,0.30150052]
[1767778890007,102.3598,136.88,136.73,0.30150052]
[1767778890212,106.22400162,136.85,136.73,0.30150052]
[1767778890802,0.05380505,136.82,136.73,0.30150052]
[1767778891411,6.5823,136.84,136.73,0.30150052]
[1767778891914,3.84330162,136.89,136.77,0.37672713]
[1767778892413,188.4401,136.93,136.74,0.32868446]
[1767778892414,3.84330162,136.86,136.74,0.32868446]
[1767778892705,112.79610162,136.86,136.74,0.32868446]
[1767778893107,10.42460162,136.86,136.74,0.32868446]
[1767778893306,10.42460162,136.86,136.79,0.05157417]
[1767778894415,112.79700162,136.86,136.79,0.05157417]
[1767778894809,108.9632,136.85,136.74,0.32868446]
[1767778895129,0.04692209,136.84,136.74,0.32868446]
[1767778895616,108.9632,136.85,136.74,0.32868446]
[1767778895917,6.5819,136.85,136.74,0.32868446]
[1767778896310,0.05524239,136.81,136.74,0.32868446]
[1767778897016,0.05524239,136.81,136.71,6.91678446]
[1767778897514,6.5825,136.83,136.71,6.91678446]
[1767778897712,6.5833,136.82,136.71,0.32868446]
[1767778897907,0.04970478,136.77,136.71,0.32868446]
[1767778898818,0.04970478,136.77,136.68,102.5027]
[1767778898819,0.04970478,136.77,136.67,0.32868446]
[1767778899218,109.0027,136.8,136.67,0.32868446]
[1767778899611,3.84330162,136.81,136.69,0.32868446]
[1767778899818,3.84330162,136.81,136.72,0.05071133]
[1767778900012,102.4234,136.79,136.72,0.05071133]
[1767778900319,6.5844,136.79,136.69,0.32868446]
[1767778901222,6.5844,136.79,136.73,0.0533986]
[1767778901518,3.84330162,136.86,136.73,0.38208306]
[1767778901710,3.84330162,136.86,136.74,0.32868446]
[1767778902312,3.84330162,136.86,136.79,0.0468788]
[1767778902723,6.5818,136.85,136.79,0.0468788]
[1767778903017,102.3703,136.87,136.79,0.0468788]
[1767778903222,6.5806,136.87,136.79,0.0468788]
[1767778903818,102.3231,136.93,136.81,0.32868446]
[1767778904525,102.3565,136.88,136.76,6.5856]
[1767778904724,3.84330162,136.86,136.75,0.32868446]
[1767778904924,3.84330162,136.86,136.76,0.32868446]
[1767778905123,3.84330162,136.86,136.81,0.05177156]
[1767778905415,3.84330162,136.86,136.76,0.32868446]
[1767778905621,0.05326678,136.82,136.76,0.32868446]
[1767778905816,3.84330162,136.86,136.76,0.32868446]
[1767778906411,23.36,136.85,136.6,0.32868446]
[1767778906613,102.4639,136.74,136.62,0.32868446]
[1767778906811,102.4765,136.72,136.62,0.32868446]
[1767778907017,112.89930162,136.73,136.62,0.32868446]
[1767778907216,226.4543,136.75,136.62,0.32868446]
[1767778907413,106.29230162,136.76,136.63,0.32868446]
[1767778907929,106.29230162,136.76,136.67,0.05405811]
[1767778908126,6.5863,136.75,136.67,0.05405811]
[1767778908311,6.5863,136.75,136.64,0.32868446]
[1767778908717,3.84330162,136.76,136.6,0.32868446]
[1767778908718,102.4833,136.71,136.6,0.32868446]
[1767778908920,102.53787255,136.71,136.6,0.32868446]
[1767778909216,6.5891,136.7,136.6,0.32868446]
[1767778909419,106.31520162,136.73,136.6,0.32868446]
[1767778909617,106.31520162,136.73,136.6,102.89438446]
[1767778909822,106.31520162,136.73,136.61,0.32868446]
[1767778910216,0.05308086,136.68,136.61,0.32868446]
[1767778911227,6.5866,136.75,136.63,0.32868446]
[1767778911413,6.5866,136.75,136.63,0.3770049]
[1767778911816,6.5866,136.75,136.63,0.32868446]
[1767778912018,6.5855,136.77,136.65,0.32868446]
[1767778912219,102.4266,136.79,136.65,0.32868446]
[1767778912620,102.4266,136.79,136.7,0.05101586]
[1767778913128,102.4266,136.79,136.65,0.32868446]
[1767778913328,6.5843,136.79,136.66,0.32868446]
[1767778913529,6.5843,136.79,136.73,0.04959434]
[1767778914826,106.29020162,136.76,136.64,0.32868446]
[1767778915631,112.87600162,136.76,136.64,0.32868446]
[1767778916134,0.05024219,136.71,136.64,0.32868446]
[1767778917327,10.42910162,136.76,136.66,0.32868446]
[1767778917522,6.5858,136.76,136.66,0.3768937]
[1767778917830,6.5858,136.76,136.66,0.32868446]
[1767778918627,109.0159,136.78,136.7,0.05211774]
[1767778919222,6.5849,136.78,136.7,0.05211774]
[1767778920028,0.05563097,136.75,136.63,0.32868446]
[1767778920418,112.87680162,136.76,136.63,0.32868446]
[1767778921026,10.42940162,136.76,136.63,0.32868446]
[1767778921328,6.5849,136.78,136.65,0.32868446]
[1767778921727,6.5849,136.78,136.68,0.05601024]
[1767778921922,6.5856,136.77,136.68,0.05601024]
[1767778922131,6.5856,136.77,136.66,0.30665319]
[1767778922738,6.5856,136.77,136.7,0.05208273]
[1767778923236,6.5856,136.77,136.63,6.89845319]
[1767778923237,106.29220162,136.76,136.63,6.89845319]
[1767778923433,0.04841826,136.75,136.63,6.89845319]
[1767778923734,0.04841826,136.75,136.64,0.30665319]
[1767778924034,6.5867,136.75,136.64,0.30665319]
[1767778924334,102.4329,136.78,136.65,0.30665319]
[1767778924635,0.04877777,136.71,136.65,0.30665319]
[1767778925139,6.5861,136.76,136.66,0.30665319]
[1767778925323,6.5861,136.76,136.67,0.0514766]
[1767778925527,3.84330162,136.73,136.61,102.86215319]
[1767778925726,102.4489,136.76,136.62,0.30665319]
[1767778925924,3.84330162,136.75,136.63,0.30665319]
[1767778926637,3.84330162,136.78,136.65,0.30665319]
[1767778926846,106.27710162,136.78,136.65,0.30665319]
[1767778927337,106.31920162,136.72,136.6,6.89995319]
[1767778928533,6.5885,136.71,136.6,6.89995319]
[1767778928734,0.05596535,136.67,136.61,0.30665319]
[1767778929334,0.05596535,136.67,136.58,0.30665319]
[1767778929837,6.5887,136.7,136.58,0.30665319]
[1767778930242,102.4951,136.7,136.58,0.30665319]
[1767778930442,102.4569,136.75,136.6,0.30665319]
[1767778930644,3.84330162,136.74,136.6,0.30665319]
[1767778930843,3.84330162,136.74,136.63,0.04869529]
[1767778931040,102.4569,136.75,136.63,0.04869529]
[1767778931242,102.4569,136.75,136.6,0.30665319]
[1767778931442,109.0596,136.73,136.61,0.30665319]
[1767778931842,109.0596,136.73,136.65,0.05414684]
[1767778932344,6.5873,136.73,136.65,0.05414684]
[1767778933639,102.4766,136.72,136.58,0.33255146]
[1767778933844,111.89982022,136.71,136.58,0.33255146]
[1767778934044,108.1147123,136.7,136.58,0.33255146]
[1767778934244,5.57822253,136.69,136.58,0.33255146]
[1767778934447,6.5895,136.69,136.58,6.92665146]
[1767778935246,6.5899,136.68,136.58,0.33255146]
[1767778935544,0.05434279,136.65,136.58,0.33255146]
[1767778935946,0.05434279,136.65,136.57,14.48183574]
[1767778936450,0.05434279,136.65,136.6,0.05366424]
[1767778937749,6.64574279,136.65,136.6,0.05366424]
[1767778938245,0.05434279,136.65,136.57,25.48183574]
[1767778940446,0.05434279,136.65,136.57,25.8143872]
[1767778940846,0.05434279,136.65,136.58,6.92695146]
[1767778941043,0.05434279,136.65,136.59,0.33255146]
[1767778941244,6.5884,136.71,136.6,6.92575146]
[1767778941647,6.5884,136.71,136.61,0.33255146]
[1767778941855,6.5884,136.71,136.61,6.92535146]
[1767778942052,6.5874,136.73,136.61,0.33255146]
[1767778942247,6.5874,136.73,136.64,6.92385146]
[1767778942440,188.77,136.76,136.65,0.33255146]
[1767778942645,12.16471869,136.75,136.65,0.33255146]
[1767778942852,6.5864,136.75,136.65,0.33255146]
[1767778943156,6.5864,136.75,136.69,0.05568898]
[1767778943960,108.18551119,136.78,136.69,0.05568898]
[1767778944152,5.58016579,136.77,136.69,0.05568898]
[1767778944451,6.5845,136.79,136.69,0.33255146]
[1767778944854,6.5845,136.79,136.72,0.05013974]
[1767778945642,195.3166,136.81,136.72,0.05013974]
[1767778945847,6.5835,136.81,136.72,0.05013974]
[1767778946058,6.5835,136.81,136.71,0.33255146]
[1767778946263,108.9791,136.83,136.71,0.33255146]